Workbook

Sheet Orientation of Calibr Sphere
AA1: Strecke AB: | AB1: =ABS(K8) -> 65 | AD1: 1 | AE1: =COS(RADIANS(AD1))*$AB$26 -> 14.99771543 | AF1: =SIN(RADIANS(AD1))*$AB$26 -> 0.2617860966 | AH1: =COS(RADIANS(AD1))*$AB$6+$AB$3 -> 69.95828546 | AI1: =SIN(RADIANS(AD1))*$AB$6+$AB$4 -> -45.54308302 | AK1: =COS(RADIANS(AD1))*$AB$7+$AB$10 -> 77.96133156 | AL1: =SIN(RADIANS(AD1))*$AB$7+$AB$11 -> -45.89213115 | AN1: =COS(RADIANS(AD1))*$AB$7+$AB$13 -> 49.96133156 | AO1: =SIN(RADIANS(AD1))*$AB$7+$AB$14 -> -17.89213115 | AQ1: =COS(RADIANS(AD1))*$AB$7+$AB$16 -> 21.96133156 | AR1: =SIN(RADIANS(AD1))*$AB$7+$AB$17 -> -45.89213115 | AT1: =COS(RADIANS(AD1))*$AB$7+$AB$19 -> 49.96133156 | AU1: =SIN(RADIANS(AD1))*$AB$7+$AB$20 -> -73.89213115
J2: Diameter A: | K2: 8 | AA2: Polar-Winkel: | AB2: =ABS(RADIANS(K11)) -> 5.497787144 | AD2: 2 | AE2: =COS(RADIANS(AD2))*$AB$26 -> 14.99086241 | AF2: =SIN(RADIANS(AD2))*$AB$26 -> 0.5234924505 | AH2: =COS(RADIANS(AD2))*$AB$6+$AB$3 -> 69.94732063 | AI2: =SIN(RADIANS(AD2))*$AB$6+$AB$4 -> -45.12435286 | AK2: =COS(RADIANS(AD2))*$AB$7+$AB$10 -> 77.95950409 | AL2: =SIN(RADIANS(AD2))*$AB$7+$AB$11 -> -45.82234279 | AN2: =COS(RADIANS(AD2))*$AB$7+$AB$13 -> 49.95950409 | AO2: =SIN(RADIANS(AD2))*$AB$7+$AB$14 -> -17.82234279 | AQ2: =COS(RADIANS(AD2))*$AB$7+$AB$16 -> 21.95950409 | AR2: =SIN(RADIANS(AD2))*$AB$7+$AB$17 -> -45.82234279 | AT2: =COS(RADIANS(AD2))*$AB$7+$AB$19 -> 49.95950409 | AU2: =SIN(RADIANS(AD2))*$AB$7+$AB$20 -> -73.82234279
AA3: Strecke AC: | AB3: =COS(AB2)*AB1 -> 45.96194078 | AD3: 3 | AE3: 14.97944302 | AF3: 0.7850393436 | AH3: 69.92904961 | AI3: -44.70587783 | AK3: 77.95645892 | AL3: -45.75259695 | AN3: 49.95645892 | AO3: -17.75259695 | AQ3: 21.95645892 | AR3: -45.75259695 | AT3: 49.95645892 | AU3: -73.75259695
AA4: Strecke BC: | AB4: =SIN(AB2)*AB1 -> -45.96194078 | AD4: 4 | AE4: 14.96346075 | AF4: 1.046347106 | AH4: 69.90347798 | AI4: -44.28778541 | AK4: 77.95219698 | AL4: -45.68291488 | AN4: 49.95219698 | AO4: -17.68291488 | AQ4: 21.95219698 | AR4: -45.68291488 | AT4: 49.95219698 | AU4: -73.68291488
J5: Diameter B: | K5: 48 | AD5: 5 | AE5: 14.94292047 | AF5: 1.307336141 | AH5: 69.87061353 | AI5: -43.87020295 | AK5: 77.94671957 | AL5: -45.61331781 | AN5: 49.94671957 | AO5: -17.61331781 | AQ5: 21.94671957 | AR5: -45.61331781 | AT5: 49.94671957 | AU5: -73.61331781
AA6: Strecke BD: | AB6: =ABS(K5/2) -> 24 | AD6: 6 | AE6: 14.91782843 | AF6: 1.567926949 | AH6: 69.83046627 | AI6: -43.45325766 | AK6: 77.94002836 | AL6: -45.54382692 | AN6: 49.94002836 | AO6: -17.54382692 | AQ6: 21.94002836 | AR6: -45.54382692 | AT6: 49.94002836 | AU6: -73.54382692
AA7: Strecke DE: | AB7: =ABS(K2/2) -> 4 | AD7: 7 | AE7: 14.88819227 | AF7: 1.828040151 | AH7: 69.78304842 | AI7: -43.03707654 | AK7: 77.93212538 | AL7: -45.4744634 | AN7: 49.93212538 | AO7: -17.4744634 | AQ7: 21.93212538 | AR7: -45.4744634 | AT7: 49.93212538 | AU7: -73.4744634
J8: Distance: | K8: 65 | AA8: Strecke BE: | AB8: =ABS(AB6+AB7) -> 28 | AD8: 8 | AE8: 14.85402103 | AF8: 2.087596514 | AH8: 69.72837443 | AI8: -42.62178635 | AK8: 77.92301305 | AL8: -45.40524837 | AN8: 49.92301305 | AO8: -17.40524837 | AQ8: 21.92301305 | AR8: -45.40524837 | AT8: 49.92301305 | AU8: -73.40524837
AD9: 9 | AE9: 14.81532511 | AF9: 2.346516976 | AH9: 69.66646095 | AI9: -42.20751362 | AK9: 77.91269414 | AL9: -45.33620292 | AN9: 49.91269414 | AO9: -17.33620292 | AQ9: 21.91269414 | AR9: -45.33620292 | AT9: 49.91269414 | AU9: -73.33620292
AA10: Punkt 1 X: | AB10: =AB3+AB8 -> 73.96194078 | AD10: 10 | AE10: 14.7721163 | AF10: 2.604722665 | AH10: 69.59732685 | AI10: -41.79438451 | AK10: 77.90117179 | AL10: -45.26734807 | AN10: 49.90117179 | AO10: -17.26734807 | AQ10: 21.90117179 | AR10: -45.26734807 | AT10: 49.90117179 | AU10: -73.26734807
J11: Angle of shaft: | K11: 315 | AA11: Punkt 1 Y: | AB11: =AB4 -> -45.96194078 | AD11: 11 | AE11: 14.72440775 | AF11: 2.862134931 | AH11: 69.52099318 | AI11: -41.38252489 | AK11: 77.88844951 | AL11: -45.1987048 | AN11: 49.88844951 | AO11: -17.1987048 | AQ11: 21.88844951 | AR11: -45.1987048 | AT11: 49.88844951 | AU11: -73.1987048
AD12: 12 | AE12: 14.67221401 | AF12: =SIN(RADIANS(AD12))*$AB$26 -> 3.118675362 | AH12: 69.43748319 | AI12: -40.9720602 | AK12: 77.87453118 | AL12: -45.13029401 | AN12: 49.87453118 | AO12: -17.13029401 | AQ12: 21.87453118 | AR12: -45.13029401 | AT12: 49.87453118 | AU12: -73.13029401
AA13: Punkt 2 X: | AB13: =AB3 -> 45.96194078 | AD13: 13 | AE13: 14.61555097 | AF13: 3.374265815 | AH13: 69.34682233 | AI13: -40.56311547 | AK13: 77.85942104 | AL13: -45.06213656 | AN13: 49.85942104 | AO13: -17.06213656 | AQ13: 21.85942104 | AR13: -45.06213656 | AT13: 49.85942104 | AU13: -73.06213656
AA14: Punkt 2 Y: | AB14: =AB4+AB8 -> -17.96194078 | AD14: 14 | AE14: 14.55443589 | AF14: 3.628828434 | AH14: =COS(RADIANS(AD14))*$AB$6+$AB$3 -> 69.24903821 | AI14: =SIN(RADIANS(AD14))*$AB$6+$AB$4 -> -40.15581528 | AK14: 77.84312368 | AL14: -44.99425319 | AN14: 49.84312368 | AO14: -16.99425319 | AQ14: 21.84312368 | AR14: -44.99425319 | AT14: 49.84312368 | AU14: -72.99425319
AD15: 15 | AE15: 14.48888739 | AF15: 3.882285677 | AH15: 69.14416061 | AI15: -39.75028369 | AK15: 77.82564408 | AL15: -44.9266646 | AN15: 49.82564408 | AO15: -16.9266646 | AQ15: 21.82564408 | AR15: -44.9266646 | AT15: 49.82564408 | AU15: -72.9266646
AA16: Punkt 3 X: | AB16: =AB3-AB8 -> 17.96194078 | AD16: 16 | AE16: 14.41892544 | AF16: 4.134560337 | AH16: 69.03222148 | AI16: -39.34664424 | AK16: 77.80698756 | AL16: -44.85939135 | AN16: 49.80698756 | AO16: -16.85939135 | AQ16: 21.80698756 | AR16: -44.85939135 | AT16: 49.80698756 | AU16: -72.85939135
AA17: Punkt 3 Y: | AB17: =AB4 -> -45.96194078 | AD17: 17 | AE17: 14.34457134 | AF17: 4.385575571 | AH17: 68.91325492 | AI17: -38.94501986 | AK17: 77.7871598 | AL17: -44.79245396 | AN17: 49.7871598 | AO17: -16.79245396 | AQ17: 21.7871598 | AR17: -44.79245396 | AT17: 49.7871598 | AU17: -72.79245396
AD18: 18 | AE18: 14.26584774 | AF18: 4.635254916 | AH18: 68.78729717 | AI18: -38.54553291 | AK18: 77.76616684 | AL18: -44.7258728 | AN18: 49.76616684 | AO18: -16.7258728 | AQ18: 21.76616684 | AR18: -44.7258728 | AT18: 49.76616684 | AU18: -72.7258728
AA19: Punkt 4 X: | AB19: =AB3 -> 45.96194078 | AD19: 19 | AE19: 14.18277863 | AF19: 4.883522317 | AH19: 68.65438659 | AI19: -38.14830507 | AK19: 77.74401508 | AL19: -44.65966816 | AN19: 49.74401508 | AO19: -16.65966816 | AQ19: 21.74401508 | AR19: -44.65966816 | AT19: 49.74401508 | AU19: -72.65966816
AA20: Punkt 4 Y: | AB20: =AB4-AB8 -> -73.96194078 | AD20: 20 | AE20: 14.09538931 | AF20: 5.13030215 | AH20: 68.51456368 | AI20: -37.75345734 | AK20: 77.72071126 | AL20: -44.5938602 | AN20: 49.72071126 | AO20: -16.5938602 | AQ20: 21.72071126 | AR20: -44.5938602 | AT20: 49.72071126 | AU20: -72.5938602
AD21: 21 | AE21: 14.0037064 | AF21: 5.375519243 | AH21: 68.36787101 | AI21: -37.36110999 | AK21: 77.69626248 | AL21: -44.52846898 | AN21: 49.69626248 | AO21: -16.52846898 | AQ21: 21.69626248 | AR21: -44.52846898 | AT21: 49.69626248 | AU21: -72.52846898
AD22: 22 | AE22: 13.90775782 | AF22: 5.619098901 | AH22: 68.21435329 | AI22: -36.97138254 | AK22: 77.6706762 | AL22: -44.4635144 | AN22: 49.6706762 | AO22: -16.4635144 | AQ22: 21.6706762 | AR22: -44.4635144 | AT22: 49.6706762 | AU22: -72.4635144
AA23: Kalibrierkugel X: | AB23: 0 | AD23: 23 | AE23: 13.8075728 | AF23: 5.860966927 | AH23: 68.05405726 | AI23: -36.58439369 | AK23: 77.64396019 | AL23: -44.39901626 | AN23: 49.64396019 | AO23: -16.39901626 | AQ23: 21.64396019 | AR23: -44.39901626 | AT23: 49.64396019 | AU23: -72.39901626
AA24: Kalibrierkugel Y: | AB24: 0 | AD24: 24 | AE24: 13.70318186 | AF24: 6.101049646 | AH24: 67.88703176 | AI24: -36.20026134 | AK24: 77.61612261 | AL24: -44.3349942 | AN24: 49.61612261 | AO24: -16.3349942 | AQ24: 21.61612261 | AR24: -44.3349942 | AT24: 49.61612261 | AU24: -72.3349942
AA25: Ø Kalibrierkugel: | AB25: 30 | AD25: 25 | AE25: 13.59461681 | AF25: 6.339273926 | AH25: 67.71332767 | AI25: -35.8191025 | AK25: 77.58717193 | AL25: -44.27146773 | AN25: 49.58717193 | AO25: -16.27146773 | AQ25: 21.58717193 | AR25: -44.27146773 | AT25: 49.58717193 | AU25: -72.27146773
AB26: =AB25/2 -> 15 | AD26: 26 | AE26: 13.48191069 | AF26: 6.575567202 | AH26: 67.53299789 | AI26: -35.44103325 | AK26: 77.55711696 | AL26: -44.20845619 | AN26: 49.55711696 | AO26: -16.20845619 | AQ26: 21.55711696 | AR26: -44.20845619 | AT26: 49.55711696 | AU26: -72.20845619
AD27: 27 | AE27: 13.36509786 | AF27: 6.809857496 | AH27: 67.34609736 | AI27: -35.06616878 | AK27: 77.52596687 | AL27: -44.14597878 | AN27: 49.52596687 | AO27: -16.14597878 | AQ27: 21.52596687 | AR27: -44.14597878 | AT27: 49.52596687 | AU27: -72.14597878
AD28: 28 | AE28: 13.24421389 | AF28: 7.042073442 | AH28: 67.15268301 | AI28: -34.69462327 | AK28: 77.49373115 | AL28: -44.08405453 | AN28: 49.49373115 | AO28: -16.08405453 | AQ28: 21.49373115 | AR28: -44.08405453 | AT28: 49.49373115 | AU28: -72.08405453
AD29: 29 | AE29: 13.11929561 | AF29: 7.272144304 | AH29: 66.95281375 | AI29: -34.32650989 | AK29: 77.46041961 | AL29: -44.0227023 | AN29: 49.46041961 | AO29: -16.0227023 | AQ29: 21.46041961 | AR29: -44.0227023 | AT29: 49.46041961 | AU29: -72.0227023
AD30: 30 | AE30: 12.99038106 | AF30: 7.5 | AH30: 66.74655047 | AI30: -33.96194078 | AK30: 77.42604239 | AL30: -43.96194078 | AN30: 49.42604239 | AO30: -15.96194078 | AQ30: 21.42604239 | AR30: -43.96194078 | AT30: 49.42604239 | AU30: -71.96194078
AD31: 31 | AE31: 12.85750951 | AF31: 7.725571124 | AH31: 66.53395599 | AI31: -33.60102698 | AK31: 77.39060998 | AL31: -43.90178848 | AN31: 49.39060998 | AO31: -15.90178848 | AQ31: 21.39060998 | AR31: -43.90178848 | AT31: 49.39060998 | AU31: -71.90178848
AD32: 32 | AE32: 12.72072144 | AF32: 7.948788963 | AH32: 66.31509508 | AI32: -33.24387844 | AK32: 77.35413316 | AL32: -43.84226372 | AN32: 49.35413316 | AO32: -15.84226372 | AQ32: 21.35413316 | AR32: -43.84226372 | AT32: 49.35413316 | AU32: -71.84226372
AD33: 33 | AE33: 12.58005852 | AF33: 8.169585525 | AH33: 66.09003441 | AI33: -32.89060394 | AK33: 77.31662305 | AL33: -43.78338464 | AN33: 49.31662305 | AO33: -15.78338464 | AQ33: 21.31662305 | AR33: -43.78338464 | AT33: 49.31662305 | AU33: -71.78338464
AD34: 34 | AE34: 12.43556359 | AF34: 8.387893552 | AH34: 65.85884252 | AI34: -32.54131109 | AK34: 77.27809107 | AL34: -43.72516916 | AN34: 49.27809107 | AO34: -15.72516916 | AQ34: 21.27809107 | AR34: -43.72516916 | AT34: 49.27809107 | AU34: -71.72516916
AD35: 35 | AE35: 12.28728066 | AF35: 8.603646545 | AH35: 65.62158984 | AI35: -32.1961063 | AK35: 77.23854895 | AL35: -43.66763503 | AN35: 49.23854895 | AO35: -15.66763503 | AQ35: 21.23854895 | AR35: -43.66763503 | AT35: 49.23854895 | AU35: -71.66763503
AD36: 36 | AE36: 12.13525492 | AF36: 8.816778784 | AH36: 65.37834864 | AI36: -31.85509472 | AK36: 77.19800875 | AL36: -43.61079977 | AN36: 49.19800875 | AO36: -15.61079977 | AQ36: 21.19800875 | AR36: -43.61079977 | AT36: 49.19800875 | AU36: -71.61079977
AD37: 37 | AE37: 11.97953265 | AF37: 9.027225347 | AH37: 65.12919302 | AI37: -31.51838022 | AK37: 77.15648282 | AL37: -43.55468068 | AN37: 49.15648282 | AO37: -15.55468068 | AQ37: 21.15648282 | AR37: -43.55468068 | AT37: 49.15648282 | AU37: -71.55468068
AD38: 38 | AE38: 11.8201613 | AF38: 9.23492213 | AH38: 64.87419886 | AI38: -31.18606537 | AK38: 77.11398379 | AL38: -43.49929488 | AN38: 49.11398379 | AO38: -15.49929488 | AQ38: 21.11398379 | AR38: -43.49929488 | AT38: 49.11398379 | AU38: -71.49929488
AD39: 39 | AE39: 11.65718942 | AF39: 9.439805866 | AH39: 64.61344385 | AI39: -30.85825139 | AK39: 77.07052462 | AL39: -43.44465921 | AN39: 49.07052462 | AO39: -15.44465921 | AQ39: 21.07052462 | AR39: -43.44465921 | AT39: 49.07052462 | AU39: -71.44465921
J40: Probe location #1 | L40: Probe location #2 | N40: Probe location #3 | P40: Probe location #4 | AD40: 40 | AE40: 11.49066665 | AF40: 9.641814145 | AH40: 64.34700741 | AI40: -30.53503814 | AK40: 77.02611855 | AL40: -43.39079034 | AN40: 49.02611855 | AO40: -15.39079034 | AQ40: 21.02611855 | AR40: -43.39079034 | AT40: 49.02611855 | AU40: -71.39079034
AD41: 41 | AE41: 11.3206437 | AF41: 9.840885435 | AH41: 64.0749707 | AI41: -30.21652408 | AK41: 76.9807791 | AL41: -43.33770466 | AN41: 48.9807791 | AO41: -15.33770466 | AQ41: 20.9807791 | AR41: -43.33770466 | AT41: 48.9807791 | AU41: -71.33770466
J42: X | K42: Y | L42: X | M42: Y | N42: X | O42: Y | P42: X | Q42: Y | AD42: 42 | AE42: 11.14717238 | AF42: 10.0369591 | AH42: 63.79741659 | AI42: -29.90280622 | AK42: 76.93452008 | AL42: -43.28541835 | AN42: 48.93452008 | AO42: -15.28541835 | AQ42: 20.93452008 | AR42: -43.28541835 | AT42: 48.93452008 | AU42: -71.28541835
J43: =AB10 -> 73.96194078 | K43: =AB11 -> -45.96194078 | L43: =AB13 -> 45.96194078 | M43: =AB14 -> -17.96194078 | N43: =AB16 -> 17.96194078 | O43: =AB17 -> -45.96194078 | P43: =AB19 -> 45.96194078 | Q43: =AB20 -> -73.96194078 | AD43: 43 | AE43: 10.97030552 | AF43: 10.2299754 | AH43: 63.51442962 | AI43: -29.59398014 | AK43: 76.88735558 | AL43: -43.23394734 | AN43: 48.88735558 | AO43: -15.23394734 | AQ43: 20.88735558 | AR43: -43.23394734 | AT43: 48.88735558 | AU43: -71.23394734
AD44: 44 | AE44: 10.79009701 | AF44: 10.41987556 | AH44: 63.22609599 | AI44: -29.29013989 | AK44: 76.83929998 | AL44: -43.1833073 | AN44: 48.83929998 | AO44: -15.1833073 | AQ44: 20.83929998 | AR44: -43.1833073 | AT44: 48.83929998 | AU44: -71.1833073
AD45: 45 | AE45: 10.60660172 | AF45: 10.60660172 | AH45: 62.93250353 | AI45: -28.99137803 | AK45: 76.7903679 | AL45: -43.13351365 | AN45: 48.7903679 | AO45: -15.13351365 | AQ45: 20.7903679 | AR45: -43.13351365 | AT45: 48.7903679 | AU45: -71.13351365
AD46: 46 | AE46: 10.41987556 | AF46: 10.79009701 | AH46: 62.63374167 | AI46: -28.69778557 | AK46: 76.74057426 | AL46: -43.08458158 | AN46: 48.74057426 | AO46: -15.08458158 | AQ46: 20.74057426 | AR46: -43.08458158 | AT46: 48.74057426 | AU46: -71.08458158
AD47: 47 | AE47: 10.2299754 | AF47: 10.97030552 | AH47: 62.32990142 | AI47: -28.40945194 | AK47: 76.68993422 | AL47: -43.03652597 | AN47: 48.68993422 | AO47: -15.03652597 | AQ47: 20.68993422 | AR47: -43.03652597 | AT47: 48.68993422 | AU47: -71.03652597
AD48: 48 | AE48: 10.0369591 | AF48: 11.14717238 | AH48: 62.02107533 | AI48: -28.12646497 | AK48: 76.6384632 | AL48: -42.98936148 | AN48: 48.6384632 | AO48: -14.98936148 | AQ48: 20.6384632 | AR48: -42.98936148 | AT48: 48.6384632 | AU48: -70.98936148
AD49: 49 | AE49: 9.840885435 | AF49: 11.3206437 | AH49: 61.70735747 | AI49: -27.84891085 | AK49: 76.58617689 | AL49: -42.94310246 | AN49: 48.58617689 | AO49: -14.94310246 | AQ49: 20.58617689 | AR49: -42.94310246 | AT49: 48.58617689 | AU49: -70.94310246
AD50: 50 | AE50: 9.641814145 | AF50: 11.49066665 | AH50: 61.38884341 | AI50: -27.57687414 | AK50: 76.53309122 | AL50: -42.897763 | AN50: 48.53309122 | AO50: -14.897763 | AQ50: 20.53309122 | AR50: -42.897763 | AT50: 48.53309122 | AU50: -70.897763
AD51: 51 | AE51: 9.439805866 | AF51: 11.65718942 | AH51: 61.06563016 | AI51: -27.3104377 | AK51: 76.47922234 | AL51: -42.85335693 | AN51: 48.47922234 | AO51: -14.85335693 | AQ51: 20.47922234 | AR51: -42.85335693 | AT51: 48.47922234 | AU51: -70.85335693
AD52: 52 | AE52: 9.23492213 | AF52: 11.8201613 | AH52: 60.73781618 | AI52: -27.04968269 | AK52: 76.42458668 | AL52: -42.80989776 | AN52: 48.42458668 | AO52: -14.80989776 | AQ52: 20.42458668 | AR52: -42.80989776 | AT52: 48.42458668 | AU52: -70.80989776
AD53: 53 | AE53: 9.027225347 | AF53: 11.97953265 | AH53: 60.40550133 | AI53: -26.79468854 | AK53: 76.36920087 | AL53: -42.76739874 | AN53: 48.36920087 | AO53: -14.76739874 | AQ53: 20.36920087 | AR53: -42.76739874 | AT53: 48.36920087 | AU53: -70.76739874
AD54: 54 | AE54: 8.816778784 | AF54: 12.13525492 | AH54: 60.06878683 | AI54: -26.54553291 | AK54: 76.31308179 | AL54: -42.7258728 | AN54: 48.31308179 | AO54: -14.7258728 | AQ54: 20.31308179 | AR54: -42.7258728 | AT54: 48.31308179 | AU54: -70.7258728
AD55: 55 | AE55: 8.603646545 | AF55: 12.28728066 | AH55: 59.72777525 | AI55: -26.30229171 | AK55: 76.25624652 | AL55: -42.6853326 | AN55: 48.25624652 | AO55: -14.6853326 | AQ55: 20.25624652 | AR55: -42.6853326 | AT55: 48.25624652 | AU55: -70.6853326
AD56: 56 | AE56: 8.387893552 | AF56: 12.43556359 | AH56: 59.38257046 | AI56: -26.06503904 | AK56: 76.19871239 | AL56: -42.64579049 | AN56: 48.19871239 | AO56: -14.64579049 | AQ56: 20.19871239 | AR56: -42.64579049 | AT56: 48.19871239 | AU56: -70.64579049
AD57: 57 | AE57: 8.169585525 | AF57: 12.58005852 | AH57: 59.03327762 | AI57: -25.83384715 | AK57: 76.14049692 | AL57: -42.60725851 | AN57: 48.14049692 | AO57: -14.60725851 | AQ57: 20.14049692 | AR57: -42.60725851 | AT57: 48.14049692 | AU57: -70.60725851
AD58: 58 | AE58: 7.948788963 | AF58: 12.72072144 | AH58: 58.68000312 | AI58: -25.60878647 | AK58: 76.08161783 | AL58: -42.56974839 | AN58: 48.08161783 | AO58: -14.56974839 | AQ58: 20.08161783 | AR58: -42.56974839 | AT58: 48.08161783 | AU58: -70.56974839
AD59: 59 | AE59: 7.725571124 | AF59: 12.85750951 | AH59: 58.32285457 | AI59: -25.38992556 | AK59: 76.02209308 | AL59: -42.53327157 | AN59: 48.02209308 | AO59: -14.53327157 | AQ59: 20.02209308 | AR59: -42.53327157 | AT59: 48.02209308 | AU59: -70.53327157
AD60: 60 | AE60: 7.5 | AF60: 12.99038106 | AH60: 57.96194078 | AI60: -25.17733109 | AK60: 75.96194078 | AL60: -42.49783916 | AN60: 47.96194078 | AO60: -14.49783916 | AQ60: 19.96194078 | AR60: -42.49783916 | AT60: 47.96194078 | AU60: -70.49783916
AD61: 61 | AE61: 7.272144304 | AF61: 13.11929561 | AH61: 57.59737166 | AI61: -24.97106781 | AK61: 75.90117926 | AL61: -42.46346195 | AN61: 47.90117926 | AO61: -14.46346195 | AQ61: 19.90117926 | AR61: -42.46346195 | AT61: 47.90117926 | AU61: -70.46346195
AD62: 62 | AE62: 7.042073442 | AF62: 13.24421389 | AH62: 57.22925828 | AI62: -24.77119855 | AK62: 75.83982703 | AL62: -42.43015041 | AN62: 47.83982703 | AO62: -14.43015041 | AQ62: 19.83982703 | AR62: -42.43015041 | AT62: 47.83982703 | AU62: -70.43015041
AD63: 63 | AE63: 6.809857496 | AF63: 13.36509786 | AH63: 56.85771277 | AI63: -24.5777842 | AK63: 75.77790278 | AL63: -42.39791468 | AN63: 47.77790278 | AO63: -14.39791468 | AQ63: 19.77790278 | AR63: -42.39791468 | AT63: 47.77790278 | AU63: -70.39791468
AD64: 64 | AE64: 6.575567202 | AF64: 13.48191069 | AH64: 56.4828483 | AI64: -24.39088367 | AK64: 75.71542536 | AL64: -42.36676459 | AN64: 47.71542536 | AO64: -14.36676459 | AQ64: 19.71542536 | AR64: -42.36676459 | AT64: 47.71542536 | AU64: -70.36676459
AD65: 65 | AE65: 6.339273926 | AF65: 13.59461681 | AH65: 56.10477906 | AI65: -24.21055389 | AK65: 75.65241382 | AL65: -42.33670963 | AN65: 47.65241382 | AO65: -14.33670963 | AQ65: 19.65241382 | AR65: -42.33670963 | AT65: 47.65241382 | AU65: -70.33670963
AD66: 66 | AE66: =COS(RADIANS(AD66))*$AB$26 -> 6.101049646 | AF66: 13.70318186 | AH66: 55.72362021 | AI66: -24.03684979 | AK66: =COS(RADIANS(AD66))*$AB$7+$AB$10 -> 75.58888735 | AL66: =SIN(RADIANS(AD66))*$AB$7+$AB$11 -> -42.30775895 | AN66: =COS(RADIANS(AD66))*$AB$7+$AB$13 -> 47.58888735 | AO66: =SIN(RADIANS(AD66))*$AB$7+$AB$14 -> -14.30775895 | AQ66: =COS(RADIANS(AD66))*$AB$7+$AB$16 -> 19.58888735 | AR66: =SIN(RADIANS(AD66))*$AB$7+$AB$17 -> -42.30775895 | AT66: =COS(RADIANS(AD66))*$AB$7+$AB$19 -> 47.58888735 | AU66: =SIN(RADIANS(AD66))*$AB$7+$AB$20 -> -70.30775895
AD67: 67 | AE67: 5.860966927 | AF67: 13.8075728 | AH67: 55.33948786 | AI67: -23.86982429 | AK67: 75.52486529 | AL67: -42.27992136 | AN67: 47.52486529 | AO67: -14.27992136 | AQ67: 19.52486529 | AR67: -42.27992136 | AT67: 47.52486529 | AU67: -70.27992136
AD68: 68 | AE68: 5.619098901 | AF68: 13.90775782 | AH68: 54.95249902 | AI68: -23.70952827 | AK68: 75.46036715 | AL68: -42.25320536 | AN68: 47.46036715 | AO68: -14.25320536 | AQ68: 19.46036715 | AR68: -42.25320536 | AT68: 47.46036715 | AU68: -70.25320536
AD69: 69 | AE69: 5.375519243 | AF69: 14.0037064 | AH69: 54.56277157 | AI69: -23.55601054 | AK69: 75.39541258 | AL69: -42.22761907 | AN69: 47.39541258 | AO69: -14.22761907 | AQ69: 19.39541258 | AR69: -42.22761907 | AT69: 47.39541258 | AU69: -70.22761907
AD70: 70 | AE70: 5.13030215 | AF70: 14.09538931 | AH70: 54.17042422 | AI70: -23.40931788 | AK70: 75.33002135 | AL70: -42.20317029 | AN70: 47.33002135 | AO70: -14.20317029 | AQ70: 19.33002135 | AR70: -42.20317029 | AT70: 47.33002135 | AU70: -70.20317029
AD71: 71 | AE71: 4.883522317 | AF71: 14.18277863 | AH71: 53.77557648 | AI71: -23.26949496 | AK71: 75.26421339 | AL71: -42.17986647 | AN71: 47.26421339 | AO71: -14.17986647 | AQ71: 19.26421339 | AR71: -42.17986647 | AT71: 47.26421339 | AU71: -70.17986647
AD72: 72 | AE72: 4.635254916 | AF72: 14.26584774 | AH72: 53.37834864 | AI72: -23.13658439 | AK72: 75.19800875 | AL72: -42.15771471 | AN72: 47.19800875 | AO72: -14.15771471 | AQ72: 19.19800875 | AR72: -42.15771471 | AT72: 47.19800875 | AU72: -70.15771471
AD73: 73 | AE73: 4.385575571 | AF73: 14.34457134 | AH73: 52.97886169 | AI73: -23.01062663 | AK73: 75.1314276 | AL73: -42.13672175 | AN73: 47.1314276 | AO73: -14.13672175 | AQ73: 19.1314276 | AR73: -42.13672175 | AT73: 47.1314276 | AU73: -70.13672175
AD74: 74 | AE74: 4.134560337 | AF74: 14.41892544 | AH74: 52.57723732 | AI74: -22.89166007 | AK74: 75.0644902 | AL74: -42.11689399 | AN74: 47.0644902 | AO74: -14.11689399 | AQ74: 19.0644902 | AR74: -42.11689399 | AT74: 47.0644902 | AU74: -70.11689399
AD75: 75 | AE75: 3.882285677 | AF75: 14.48888739 | AH75: 52.17359786 | AI75: -22.77972095 | AK75: 74.99721696 | AL75: -42.09823747 | AN75: 46.99721696 | AO75: -14.09823747 | AQ75: 18.99721696 | AR75: -42.09823747 | AT75: 46.99721696 | AU75: -70.09823747
AD76: 76 | AE76: 3.628828434 | AF76: =SIN(RADIANS(AD76))*$AB$26 -> 14.55443589 | AH76: 51.76806627 | AI76: -22.67484335 | AK76: 74.92962836 | AL76: -42.08075787 | AN76: 46.92962836 | AO76: -14.08075787 | AQ76: 18.92962836 | AR76: -42.08075787 | AT76: 46.92962836 | AU76: -70.08075787
AD77: 77 | AE77: 3.374265815 | AF77: 14.61555097 | AH77: 51.36076608 | AI77: -22.57705922 | AK77: 74.86174499 | AL77: -42.06446052 | AN77: 46.86174499 | AO77: -14.06446052 | AQ77: 18.86174499 | AR77: -42.06446052 | AT77: 46.86174499 | AU77: -70.06446052
AD78: 78 | AE78: 3.118675362 | AF78: 14.67221401 | AH78: =COS(RADIANS(AD78))*$AB$6+$AB$3 -> 50.95182136 | AI78: =SIN(RADIANS(AD78))*$AB$6+$AB$4 -> -22.48639836 | AK78: 74.79358754 | AL78: -42.04935037 | AN78: 46.79358754 | AO78: -14.04935037 | AQ78: 18.79358754 | AR78: -42.04935037 | AT78: 46.79358754 | AU78: -70.04935037
AD79: 79 | AE79: 2.862134931 | AF79: 14.72440775 | AH79: 50.54135667 | AI79: -22.40288837 | AK79: 74.72517676 | AL79: -42.03543204 | AN79: 46.72517676 | AO79: -14.03543204 | AQ79: 18.72517676 | AR79: -42.03543204 | AT79: 46.72517676 | AU79: -70.03543204
AD80: 80 | AE80: 2.604722665 | AF80: 14.7721163 | AH80: 50.12949704 | AI80: -22.3265547 | AK80: 74.65653349 | AL80: -42.02270977 | AN80: 46.65653349 | AO80: -14.02270977 | AQ80: 18.65653349 | AR80: -42.02270977 | AT80: 46.65653349 | AU80: -70.02270977
AD81: 81 | AE81: 2.346516976 | AF81: 14.81532511 | AH81: 49.71636794 | AI81: -22.2574206 | AK81: 74.58767864 | AL81: -42.01118741 | AN81: 46.58767864 | AO81: -14.01118741 | AQ81: 18.58767864 | AR81: -42.01118741 | AT81: 46.58767864 | AU81: -70.01118741
AD82: 82 | AE82: 2.087596514 | AF82: 14.85402103 | AH82: 49.3020952 | AI82: -22.19550713 | AK82: 74.51863318 | AL82: -42.0008685 | AN82: 46.51863318 | AO82: -14.0008685 | AQ82: 18.51863318 | AR82: -42.0008685 | AT82: 46.51863318 | AU82: -70.0008685
AD83: 83 | AE83: 1.828040151 | AF83: 14.88819227 | AH83: 48.88680502 | AI83: -22.14083314 | AK83: 74.44941815 | AL83: -41.99175617 | AN83: 46.44941815 | AO83: -13.99175617 | AQ83: 18.44941815 | AR83: -41.99175617 | AT83: 46.44941815 | AU83: -69.99175617
AD84: 84 | AE84: 1.567926949 | AF84: 14.91782843 | AH84: 48.4706239 | AI84: -22.09341529 | AK84: 74.38005463 | AL84: -41.9838532 | AN84: 46.38005463 | AO84: -13.9838532 | AQ84: 18.38005463 | AR84: -41.9838532 | AT84: 46.38005463 | AU84: -69.9838532
AD85: 85 | AE85: 1.307336141 | AF85: 14.94292047 | AH85: 48.0536786 | AI85: -22.05326802 | AK85: 74.31056375 | AL85: -41.97716198 | AN85: 46.31056375 | AO85: -13.97716198 | AQ85: 18.31056375 | AR85: -41.97716198 | AT85: 46.31056375 | AU85: -69.97716198
AD86: 86 | AE86: 1.046347106 | AF86: 14.96346075 | AH86: 47.63609615 | AI86: -22.02040357 | AK86: 74.24096667 | AL86: -41.97168458 | AN86: 46.24096667 | AO86: -13.97168458 | AQ86: 18.24096667 | AR86: -41.97168458 | AT86: 46.24096667 | AU86: -69.97168458
AD87: 87 | AE87: 0.7850393436 | AF87: 14.97944302 | AH87: 47.21800373 | AI87: -21.99483194 | AK87: 74.1712846 | AL87: -41.96742264 | AN87: 46.1712846 | AO87: -13.96742264 | AQ87: 18.1712846 | AR87: -41.96742264 | AT87: 46.1712846 | AU87: -69.96742264
AD88: 88 | AE88: 0.5234924505 | AF88: 14.99086241 | AH88: 46.7995287 | AI88: -21.97656093 | AK88: 74.10153876 | AL88: -41.96437747 | AN88: 46.10153876 | AO88: -13.96437747 | AQ88: 18.10153876 | AR88: -41.96437747 | AT88: 46.10153876 | AU88: -69.96437747
AD89: 89 | AE89: 0.2617860966 | AF89: 14.99771543 | AH89: 46.38079853 | AI89: -21.96559609 | AK89: 74.0317504 | AL89: -41.96255 | AN89: 46.0317504 | AO89: -13.96255 | AQ89: 18.0317504 | AR89: -41.96255 | AT89: 46.0317504 | AU89: -69.96255
AD90: 90 | AE90: 9.188613412e-16 | AF90: 15 | AH90: 45.96194078 | AI90: -21.96194078 | AK90: 73.96194078 | AL90: -41.96194078 | AN90: 45.96194078 | AO90: -13.96194078 | AQ90: 17.96194078 | AR90: -41.96194078 | AT90: 45.96194078 | AU90: -69.96194078
AD91: 91 | AE91: -0.2617860966 | AF91: 14.99771543 | AH91: 45.54308302 | AI91: -21.96559609 | AK91: 73.89213115 | AL91: -41.96255 | AN91: 45.89213115 | AO91: -13.96255 | AQ91: 17.89213115 | AR91: -41.96255 | AT91: 45.89213115 | AU91: -69.96255
AD92: 92 | AE92: -0.5234924505 | AF92: 14.99086241 | AH92: 45.12435286 | AI92: -21.97656093 | AK92: 73.82234279 | AL92: -41.96437747 | AN92: 45.82234279 | AO92: -13.96437747 | AQ92: 17.82234279 | AR92: -41.96437747 | AT92: 45.82234279 | AU92: -69.96437747
AD93: 93 | AE93: -0.7850393436 | AF93: 14.97944302 | AH93: 44.70587783 | AI93: -21.99483194 | AK93: 73.75259695 | AL93: -41.96742264 | AN93: 45.75259695 | AO93: -13.96742264 | AQ93: 17.75259695 | AR93: -41.96742264 | AT93: 45.75259695 | AU93: -69.96742264
AD94: 94 | AE94: -1.046347106 | AF94: 14.96346075 | AH94: 44.28778541 | AI94: -22.02040357 | AK94: 73.68291488 | AL94: -41.97168458 | AN94: 45.68291488 | AO94: -13.97168458 | AQ94: 17.68291488 | AR94: -41.97168458 | AT94: 45.68291488 | AU94: -69.97168458
AD95: 95 | AE95: -1.307336141 | AF95: 14.94292047 | AH95: 43.87020295 | AI95: -22.05326802 | AK95: 73.61331781 | AL95: -41.97716198 | AN95: 45.61331781 | AO95: -13.97716198 | AQ95: 17.61331781 | AR95: -41.97716198 | AT95: 45.61331781 | AU95: -69.97716198
AD96: 96 | AE96: -1.567926949 | AF96: 14.91782843 | AH96: 43.45325766 | AI96: -22.09341529 | AK96: 73.54382692 | AL96: -41.9838532 | AN96: 45.54382692 | AO96: -13.9838532 | AQ96: 17.54382692 | AR96: -41.9838532 | AT96: 45.54382692 | AU96: -69.9838532
AD97: 97 | AE97: -1.828040151 | AF97: 14.88819227 | AH97: 43.03707654 | AI97: -22.14083314 | AK97: 73.4744634 | AL97: -41.99175617 | AN97: 45.4744634 | AO97: -13.99175617 | AQ97: 17.4744634 | AR97: -41.99175617 | AT97: 45.4744634 | AU97: -69.99175617
AD98: 98 | AE98: -2.087596514 | AF98: 14.85402103 | AH98: 42.62178635 | AI98: -22.19550713 | AK98: 73.40524837 | AL98: -42.0008685 | AN98: 45.40524837 | AO98: -14.0008685 | AQ98: 17.40524837 | AR98: -42.0008685 | AT98: 45.40524837 | AU98: -70.0008685
AD99: 99 | AE99: -2.346516976 | AF99: 14.81532511 | AH99: 42.20751362 | AI99: -22.2574206 | AK99: 73.33620292 | AL99: -42.01118741 | AN99: 45.33620292 | AO99: -14.01118741 | AQ99: 17.33620292 | AR99: -42.01118741 | AT99: 45.33620292 | AU99: -70.01118741
AD100: 100 | AE100: -2.604722665 | AF100: 14.7721163 | AH100: 41.79438451 | AI100: -22.3265547 | AK100: 73.26734807 | AL100: -42.02270977 | AN100: 45.26734807 | AO100: -14.02270977 | AQ100: 17.26734807 | AR100: -42.02270977 | AT100: 45.26734807 | AU100: -70.02270977
AD101: 101 | AE101: -2.862134931 | AF101: 14.72440775 | AH101: 41.38252489 | AI101: -22.40288837 | AK101: 73.1987048 | AL101: -42.03543204 | AN101: 45.1987048 | AO101: -14.03543204 | AQ101: 17.1987048 | AR101: -42.03543204 | AT101: 45.1987048 | AU101: -70.03543204
AD102: 102 | AE102: -3.118675362 | AF102: 14.67221401 | AH102: 40.9720602 | AI102: -22.48639836 | AK102: 73.13029401 | AL102: -42.04935037 | AN102: 45.13029401 | AO102: -14.04935037 | AQ102: 17.13029401 | AR102: -42.04935037 | AT102: 45.13029401 | AU102: -70.04935037
AD103: 103 | AE103: -3.374265815 | AF103: 14.61555097 | AH103: 40.56311547 | AI103: -22.57705922 | AK103: 73.06213656 | AL103: -42.06446052 | AN103: 45.06213656 | AO103: -14.06446052 | AQ103: 17.06213656 | AR103: -42.06446052 | AT103: 45.06213656 | AU103: -70.06446052
AD104: 104 | AE104: -3.628828434 | AF104: 14.55443589 | AH104: 40.15581528 | AI104: -22.67484335 | AK104: 72.99425319 | AL104: -42.08075787 | AN104: 44.99425319 | AO104: -14.08075787 | AQ104: 16.99425319 | AR104: -42.08075787 | AT104: 44.99425319 | AU104: -70.08075787
AD105: 105 | AE105: -3.882285677 | AF105: 14.48888739 | AH105: 39.75028369 | AI105: -22.77972095 | AK105: 72.9266646 | AL105: -42.09823747 | AN105: 44.9266646 | AO105: -14.09823747 | AQ105: 16.9266646 | AR105: -42.09823747 | AT105: 44.9266646 | AU105: -70.09823747
AD106: 106 | AE106: -4.134560337 | AF106: 14.41892544 | AH106: 39.34664424 | AI106: -22.89166007 | AK106: 72.85939135 | AL106: -42.11689399 | AN106: 44.85939135 | AO106: -14.11689399 | AQ106: 16.85939135 | AR106: -42.11689399 | AT106: 44.85939135 | AU106: -70.11689399
AD107: 107 | AE107: -4.385575571 | AF107: 14.34457134 | AH107: 38.94501986 | AI107: -23.01062663 | AK107: 72.79245396 | AL107: -42.13672175 | AN107: 44.79245396 | AO107: -14.13672175 | AQ107: 16.79245396 | AR107: -42.13672175 | AT107: 44.79245396 | AU107: -70.13672175
AD108: 108 | AE108: -4.635254916 | AF108: 14.26584774 | AH108: 38.54553291 | AI108: -23.13658439 | AK108: 72.7258728 | AL108: -42.15771471 | AN108: 44.7258728 | AO108: -14.15771471 | AQ108: 16.7258728 | AR108: -42.15771471 | AT108: 44.7258728 | AU108: -70.15771471
AD109: 109 | AE109: -4.883522317 | AF109: 14.18277863 | AH109: 38.14830507 | AI109: -23.26949496 | AK109: 72.65966816 | AL109: -42.17986647 | AN109: 44.65966816 | AO109: -14.17986647 | AQ109: 16.65966816 | AR109: -42.17986647 | AT109: 44.65966816 | AU109: -70.17986647
AD110: 110 | AE110: -5.13030215 | AF110: 14.09538931 | AH110: 37.75345734 | AI110: -23.40931788 | AK110: 72.5938602 | AL110: -42.20317029 | AN110: 44.5938602 | AO110: -14.20317029 | AQ110: 16.5938602 | AR110: -42.20317029 | AT110: 44.5938602 | AU110: -70.20317029
AD111: 111 | AE111: -5.375519243 | AF111: 14.0037064 | AH111: 37.36110999 | AI111: -23.55601054 | AK111: 72.52846898 | AL111: -42.22761907 | AN111: 44.52846898 | AO111: -14.22761907 | AQ111: 16.52846898 | AR111: -42.22761907 | AT111: 44.52846898 | AU111: -70.22761907
AD112: 112 | AE112: -5.619098901 | AF112: 13.90775782 | AH112: 36.97138254 | AI112: -23.70952827 | AK112: 72.4635144 | AL112: -42.25320536 | AN112: 44.4635144 | AO112: -14.25320536 | AQ112: 16.4635144 | AR112: -42.25320536 | AT112: 44.4635144 | AU112: -70.25320536
AD113: 113 | AE113: -5.860966927 | AF113: 13.8075728 | AH113: 36.58439369 | AI113: -23.86982429 | AK113: 72.39901626 | AL113: -42.27992136 | AN113: 44.39901626 | AO113: -14.27992136 | AQ113: 16.39901626 | AR113: -42.27992136 | AT113: 44.39901626 | AU113: -70.27992136
AD114: 114 | AE114: -6.101049646 | AF114: 13.70318186 | AH114: 36.20026134 | AI114: -24.03684979 | AK114: 72.3349942 | AL114: -42.30775895 | AN114: 44.3349942 | AO114: -14.30775895 | AQ114: 16.3349942 | AR114: -42.30775895 | AT114: 44.3349942 | AU114: -70.30775895
AD115: 115 | AE115: -6.339273926 | AF115: 13.59461681 | AH115: 35.8191025 | AI115: -24.21055389 | AK115: 72.27146773 | AL115: -42.33670963 | AN115: 44.27146773 | AO115: -14.33670963 | AQ115: 16.27146773 | AR115: -42.33670963 | AT115: 44.27146773 | AU115: -70.33670963
AD116: 116 | AE116: -6.575567202 | AF116: 13.48191069 | AH116: 35.44103325 | AI116: -24.39088367 | AK116: 72.20845619 | AL116: -42.36676459 | AN116: 44.20845619 | AO116: -14.36676459 | AQ116: 16.20845619 | AR116: -42.36676459 | AT116: 44.20845619 | AU116: -70.36676459
AD117: 117 | AE117: -6.809857496 | AF117: 13.36509786 | AH117: 35.06616878 | AI117: -24.5777842 | AK117: 72.14597878 | AL117: -42.39791468 | AN117: 44.14597878 | AO117: -14.39791468 | AQ117: 16.14597878 | AR117: -42.39791468 | AT117: 44.14597878 | AU117: -70.39791468
AD118: 118 | AE118: -7.042073442 | AF118: 13.24421389 | AH118: 34.69462327 | AI118: -24.77119855 | AK118: 72.08405453 | AL118: -42.43015041 | AN118: 44.08405453 | AO118: -14.43015041 | AQ118: 16.08405453 | AR118: -42.43015041 | AT118: 44.08405453 | AU118: -70.43015041
AD119: 119 | AE119: -7.272144304 | AF119: 13.11929561 | AH119: 34.32650989 | AI119: -24.97106781 | AK119: 72.0227023 | AL119: -42.46346195 | AN119: 44.0227023 | AO119: -14.46346195 | AQ119: 16.0227023 | AR119: -42.46346195 | AT119: 44.0227023 | AU119: -70.46346195
AD120: 120 | AE120: -7.5 | AF120: 12.99038106 | AH120: 33.96194078 | AI120: -25.17733109 | AK120: 71.96194078 | AL120: -42.49783916 | AN120: 43.96194078 | AO120: -14.49783916 | AQ120: 15.96194078 | AR120: -42.49783916 | AT120: 43.96194078 | AU120: -70.49783916
AD121: 121 | AE121: -7.725571124 | AF121: 12.85750951 | AH121: 33.60102698 | AI121: -25.38992556 | AK121: 71.90178848 | AL121: -42.53327157 | AN121: 43.90178848 | AO121: -14.53327157 | AQ121: 15.90178848 | AR121: -42.53327157 | AT121: 43.90178848 | AU121: -70.53327157
AD122: 122 | AE122: -7.948788963 | AF122: 12.72072144 | AH122: 33.24387844 | AI122: -25.60878647 | AK122: 71.84226372 | AL122: -42.56974839 | AN122: 43.84226372 | AO122: -14.56974839 | AQ122: 15.84226372 | AR122: -42.56974839 | AT122: 43.84226372 | AU122: -70.56974839
AD123: 123 | AE123: -8.169585525 | AF123: 12.58005852 | AH123: 32.89060394 | AI123: -25.83384715 | AK123: 71.78338464 | AL123: -42.60725851 | AN123: 43.78338464 | AO123: -14.60725851 | AQ123: 15.78338464 | AR123: -42.60725851 | AT123: 43.78338464 | AU123: -70.60725851
AD124: 124 | AE124: -8.387893552 | AF124: 12.43556359 | AH124: 32.54131109 | AI124: -26.06503904 | AK124: 71.72516916 | AL124: -42.64579049 | AN124: 43.72516916 | AO124: -14.64579049 | AQ124: 15.72516916 | AR124: -42.64579049 | AT124: 43.72516916 | AU124: -70.64579049
AD125: 125 | AE125: -8.603646545 | AF125: 12.28728066 | AH125: 32.1961063 | AI125: -26.30229171 | AK125: 71.66763503 | AL125: -42.6853326 | AN125: 43.66763503 | AO125: -14.6853326 | AQ125: 15.66763503 | AR125: -42.6853326 | AT125: 43.66763503 | AU125: -70.6853326
AD126: 126 | AE126: -8.816778784 | AF126: 12.13525492 | AH126: 31.85509472 | AI126: -26.54553291 | AK126: 71.61079977 | AL126: -42.7258728 | AN126: 43.61079977 | AO126: -14.7258728 | AQ126: 15.61079977 | AR126: -42.7258728 | AT126: 43.61079977 | AU126: -70.7258728
AD127: 127 | AE127: -9.027225347 | AF127: 11.97953265 | AH127: 31.51838022 | AI127: -26.79468854 | AK127: 71.55468068 | AL127: -42.76739874 | AN127: 43.55468068 | AO127: -14.76739874 | AQ127: 15.55468068 | AR127: -42.76739874 | AT127: 43.55468068 | AU127: -70.76739874
AD128: 128 | AE128: -9.23492213 | AF128: 11.8201613 | AH128: 31.18606537 | AI128: -27.04968269 | AK128: 71.49929488 | AL128: -42.80989776 | AN128: 43.49929488 | AO128: -14.80989776 | AQ128: 15.49929488 | AR128: -42.80989776 | AT128: 43.49929488 | AU128: -70.80989776
AD129: 129 | AE129: -9.439805866 | AF129: 11.65718942 | AH129: 30.85825139 | AI129: -27.3104377 | AK129: 71.44465921 | AL129: -42.85335693 | AN129: 43.44465921 | AO129: -14.85335693 | AQ129: 15.44465921 | AR129: -42.85335693 | AT129: 43.44465921 | AU129: -70.85335693
AD130: 130 | AE130: =COS(RADIANS(AD130))*$AB$26 -> -9.641814145 | AF130: 11.49066665 | AH130: 30.53503814 | AI130: -27.57687414 | AK130: =COS(RADIANS(AD130))*$AB$7+$AB$10 -> 71.39079034 | AL130: =SIN(RADIANS(AD130))*$AB$7+$AB$11 -> -42.897763 | AN130: =COS(RADIANS(AD130))*$AB$7+$AB$13 -> 43.39079034 | AO130: =SIN(RADIANS(AD130))*$AB$7+$AB$14 -> -14.897763 | AQ130: =COS(RADIANS(AD130))*$AB$7+$AB$16 -> 15.39079034 | AR130: =SIN(RADIANS(AD130))*$AB$7+$AB$17 -> -42.897763 | AT130: =COS(RADIANS(AD130))*$AB$7+$AB$19 -> 43.39079034 | AU130: =SIN(RADIANS(AD130))*$AB$7+$AB$20 -> -70.897763
AD131: 131 | AE131: -9.840885435 | AF131: 11.3206437 | AH131: 30.21652408 | AI131: -27.84891085 | AK131: 71.33770466 | AL131: -42.94310246 | AN131: 43.33770466 | AO131: -14.94310246 | AQ131: 15.33770466 | AR131: -42.94310246 | AT131: 43.33770466 | AU131: -70.94310246
AD132: 132 | AE132: -10.0369591 | AF132: 11.14717238 | AH132: 29.90280622 | AI132: -28.12646497 | AK132: 71.28541835 | AL132: -42.98936148 | AN132: 43.28541835 | AO132: -14.98936148 | AQ132: 15.28541835 | AR132: -42.98936148 | AT132: 43.28541835 | AU132: -70.98936148
AD133: 133 | AE133: -10.2299754 | AF133: 10.97030552 | AH133: 29.59398014 | AI133: -28.40945194 | AK133: 71.23394734 | AL133: -43.03652597 | AN133: 43.23394734 | AO133: -15.03652597 | AQ133: 15.23394734 | AR133: -43.03652597 | AT133: 43.23394734 | AU133: -71.03652597
AD134: 134 | AE134: -10.41987556 | AF134: 10.79009701 | AH134: 29.29013989 | AI134: -28.69778557 | AK134: 71.1833073 | AL134: -43.08458158 | AN134: 43.1833073 | AO134: -15.08458158 | AQ134: 15.1833073 | AR134: -43.08458158 | AT134: 43.1833073 | AU134: -71.08458158
AD135: 135 | AE135: -10.60660172 | AF135: 10.60660172 | AH135: 28.99137803 | AI135: -28.99137803 | AK135: 71.13351365 | AL135: -43.13351365 | AN135: 43.13351365 | AO135: -15.13351365 | AQ135: 15.13351365 | AR135: -43.13351365 | AT135: 43.13351365 | AU135: -71.13351365
AD136: 136 | AE136: -10.79009701 | AF136: 10.41987556 | AH136: 28.69778557 | AI136: -29.29013989 | AK136: 71.08458158 | AL136: -43.1833073 | AN136: 43.08458158 | AO136: -15.1833073 | AQ136: 15.08458158 | AR136: -43.1833073 | AT136: 43.08458158 | AU136: -71.1833073
AD137: 137 | AE137: -10.97030552 | AF137: 10.2299754 | AH137: 28.40945194 | AI137: -29.59398014 | AK137: 71.03652597 | AL137: -43.23394734 | AN137: 43.03652597 | AO137: -15.23394734 | AQ137: 15.03652597 | AR137: -43.23394734 | AT137: 43.03652597 | AU137: -71.23394734
AD138: 138 | AE138: -11.14717238 | AF138: 10.0369591 | AH138: 28.12646497 | AI138: -29.90280622 | AK138: 70.98936148 | AL138: -43.28541835 | AN138: 42.98936148 | AO138: -15.28541835 | AQ138: 14.98936148 | AR138: -43.28541835 | AT138: 42.98936148 | AU138: -71.28541835
AD139: 139 | AE139: -11.3206437 | AF139: 9.840885435 | AH139: 27.84891085 | AI139: -30.21652408 | AK139: 70.94310246 | AL139: -43.33770466 | AN139: 42.94310246 | AO139: -15.33770466 | AQ139: 14.94310246 | AR139: -43.33770466 | AT139: 42.94310246 | AU139: -71.33770466
AD140: 140 | AE140: -11.49066665 | AF140: =SIN(RADIANS(AD140))*$AB$26 -> 9.641814145 | AH140: 27.57687414 | AI140: -30.53503814 | AK140: 70.897763 | AL140: -43.39079034 | AN140: 42.897763 | AO140: -15.39079034 | AQ140: 14.897763 | AR140: -43.39079034 | AT140: 42.897763 | AU140: -71.39079034
AD141: 141 | AE141: -11.65718942 | AF141: 9.439805866 | AH141: 27.3104377 | AI141: -30.85825139 | AK141: 70.85335693 | AL141: -43.44465921 | AN141: 42.85335693 | AO141: -15.44465921 | AQ141: 14.85335693 | AR141: -43.44465921 | AT141: 42.85335693 | AU141: -71.44465921
AD142: 142 | AE142: -11.8201613 | AF142: 9.23492213 | AH142: =COS(RADIANS(AD142))*$AB$6+$AB$3 -> 27.04968269 | AI142: =SIN(RADIANS(AD142))*$AB$6+$AB$4 -> -31.18606537 | AK142: 70.80989776 | AL142: -43.49929488 | AN142: 42.80989776 | AO142: -15.49929488 | AQ142: 14.80989776 | AR142: -43.49929488 | AT142: 42.80989776 | AU142: -71.49929488
AD143: 143 | AE143: -11.97953265 | AF143: 9.027225347 | AH143: 26.79468854 | AI143: -31.51838022 | AK143: 70.76739874 | AL143: -43.55468068 | AN143: 42.76739874 | AO143: -15.55468068 | AQ143: 14.76739874 | AR143: -43.55468068 | AT143: 42.76739874 | AU143: -71.55468068
AD144: 144 | AE144: -12.13525492 | AF144: 8.816778784 | AH144: 26.54553291 | AI144: -31.85509472 | AK144: 70.7258728 | AL144: -43.61079977 | AN144: 42.7258728 | AO144: -15.61079977 | AQ144: 14.7258728 | AR144: -43.61079977 | AT144: 42.7258728 | AU144: -71.61079977
AD145: 145 | AE145: -12.28728066 | AF145: 8.603646545 | AH145: 26.30229171 | AI145: -32.1961063 | AK145: 70.6853326 | AL145: -43.66763503 | AN145: 42.6853326 | AO145: -15.66763503 | AQ145: 14.6853326 | AR145: -43.66763503 | AT145: 42.6853326 | AU145: -71.66763503
AD146: 146 | AE146: -12.43556359 | AF146: 8.387893552 | AH146: 26.06503904 | AI146: -32.54131109 | AK146: 70.64579049 | AL146: -43.72516916 | AN146: 42.64579049 | AO146: -15.72516916 | AQ146: 14.64579049 | AR146: -43.72516916 | AT146: 42.64579049 | AU146: -71.72516916
AD147: 147 | AE147: -12.58005852 | AF147: 8.169585525 | AH147: 25.83384715 | AI147: -32.89060394 | AK147: 70.60725851 | AL147: -43.78338464 | AN147: 42.60725851 | AO147: -15.78338464 | AQ147: 14.60725851 | AR147: -43.78338464 | AT147: 42.60725851 | AU147: -71.78338464
AD148: 148 | AE148: -12.72072144 | AF148: 7.948788963 | AH148: 25.60878647 | AI148: -33.24387844 | AK148: 70.56974839 | AL148: -43.84226372 | AN148: 42.56974839 | AO148: -15.84226372 | AQ148: 14.56974839 | AR148: -43.84226372 | AT148: 42.56974839 | AU148: -71.84226372
AD149: 149 | AE149: -12.85750951 | AF149: 7.725571124 | AH149: 25.38992556 | AI149: -33.60102698 | AK149: 70.53327157 | AL149: -43.90178848 | AN149: 42.53327157 | AO149: -15.90178848 | AQ149: 14.53327157 | AR149: -43.90178848 | AT149: 42.53327157 | AU149: -71.90178848
AD150: 150 | AE150: -12.99038106 | AF150: 7.5 | AH150: 25.17733109 | AI150: -33.96194078 | AK150: 70.49783916 | AL150: -43.96194078 | AN150: 42.49783916 | AO150: -15.96194078 | AQ150: 14.49783916 | AR150: -43.96194078 | AT150: 42.49783916 | AU150: -71.96194078
AD151: 151 | AE151: -13.11929561 | AF151: 7.272144304 | AH151: 24.97106781 | AI151: -34.32650989 | AK151: 70.46346195 | AL151: -44.0227023 | AN151: 42.46346195 | AO151: -16.0227023 | AQ151: 14.46346195 | AR151: -44.0227023 | AT151: 42.46346195 | AU151: -72.0227023
AD152: 152 | AE152: -13.24421389 | AF152: 7.042073442 | AH152: 24.77119855 | AI152: -34.69462327 | AK152: 70.43015041 | AL152: -44.08405453 | AN152: 42.43015041 | AO152: -16.08405453 | AQ152: 14.43015041 | AR152: -44.08405453 | AT152: 42.43015041 | AU152: -72.08405453
AD153: 153 | AE153: -13.36509786 | AF153: 6.809857496 | AH153: 24.5777842 | AI153: -35.06616878 | AK153: 70.39791468 | AL153: -44.14597878 | AN153: 42.39791468 | AO153: -16.14597878 | AQ153: 14.39791468 | AR153: -44.14597878 | AT153: 42.39791468 | AU153: -72.14597878
AD154: 154 | AE154: -13.48191069 | AF154: 6.575567202 | AH154: 24.39088367 | AI154: -35.44103325 | AK154: 70.36676459 | AL154: -44.20845619 | AN154: 42.36676459 | AO154: -16.20845619 | AQ154: 14.36676459 | AR154: -44.20845619 | AT154: 42.36676459 | AU154: -72.20845619
AD155: 155 | AE155: -13.59461681 | AF155: 6.339273926 | AH155: 24.21055389 | AI155: -35.8191025 | AK155: 70.33670963 | AL155: -44.27146773 | AN155: 42.33670963 | AO155: -16.27146773 | AQ155: 14.33670963 | AR155: -44.27146773 | AT155: 42.33670963 | AU155: -72.27146773
AD156: 156 | AE156: -13.70318186 | AF156: 6.101049646 | AH156: 24.03684979 | AI156: -36.20026134 | AK156: 70.30775895 | AL156: -44.3349942 | AN156: 42.30775895 | AO156: -16.3349942 | AQ156: 14.30775895 | AR156: -44.3349942 | AT156: 42.30775895 | AU156: -72.3349942
AD157: 157 | AE157: -13.8075728 | AF157: 5.860966927 | AH157: 23.86982429 | AI157: -36.58439369 | AK157: 70.27992136 | AL157: -44.39901626 | AN157: 42.27992136 | AO157: -16.39901626 | AQ157: 14.27992136 | AR157: -44.39901626 | AT157: 42.27992136 | AU157: -72.39901626
AD158: 158 | AE158: -13.90775782 | AF158: 5.619098901 | AH158: 23.70952827 | AI158: -36.97138254 | AK158: 70.25320536 | AL158: -44.4635144 | AN158: 42.25320536 | AO158: -16.4635144 | AQ158: 14.25320536 | AR158: -44.4635144 | AT158: 42.25320536 | AU158: -72.4635144
AD159: 159 | AE159: -14.0037064 | AF159: 5.375519243 | AH159: 23.55601054 | AI159: -37.36110999 | AK159: 70.22761907 | AL159: -44.52846898 | AN159: 42.22761907 | AO159: -16.52846898 | AQ159: 14.22761907 | AR159: -44.52846898 | AT159: 42.22761907 | AU159: -72.52846898
AD160: 160 | AE160: -14.09538931 | AF160: 5.13030215 | AH160: 23.40931788 | AI160: -37.75345734 | AK160: 70.20317029 | AL160: -44.5938602 | AN160: 42.20317029 | AO160: -16.5938602 | AQ160: 14.20317029 | AR160: -44.5938602 | AT160: 42.20317029 | AU160: -72.5938602
AD161: 161 | AE161: -14.18277863 | AF161: 4.883522317 | AH161: 23.26949496 | AI161: -38.14830507 | AK161: 70.17986647 | AL161: -44.65966816 | AN161: 42.17986647 | AO161: -16.65966816 | AQ161: 14.17986647 | AR161: -44.65966816 | AT161: 42.17986647 | AU161: -72.65966816
AD162: 162 | AE162: -14.26584774 | AF162: 4.635254916 | AH162: 23.13658439 | AI162: -38.54553291 | AK162: 70.15771471 | AL162: -44.7258728 | AN162: 42.15771471 | AO162: -16.7258728 | AQ162: 14.15771471 | AR162: -44.7258728 | AT162: 42.15771471 | AU162: -72.7258728
AD163: 163 | AE163: -14.34457134 | AF163: 4.385575571 | AH163: 23.01062663 | AI163: -38.94501986 | AK163: 70.13672175 | AL163: -44.79245396 | AN163: 42.13672175 | AO163: -16.79245396 | AQ163: 14.13672175 | AR163: -44.79245396 | AT163: 42.13672175 | AU163: -72.79245396
AD164: 164 | AE164: -14.41892544 | AF164: 4.134560337 | AH164: 22.89166007 | AI164: -39.34664424 | AK164: 70.11689399 | AL164: -44.85939135 | AN164: 42.11689399 | AO164: -16.85939135 | AQ164: 14.11689399 | AR164: -44.85939135 | AT164: 42.11689399 | AU164: -72.85939135
AD165: 165 | AE165: -14.48888739 | AF165: 3.882285677 | AH165: 22.77972095 | AI165: -39.75028369 | AK165: 70.09823747 | AL165: -44.9266646 | AN165: 42.09823747 | AO165: -16.9266646 | AQ165: 14.09823747 | AR165: -44.9266646 | AT165: 42.09823747 | AU165: -72.9266646
AD166: 166 | AE166: -14.55443589 | AF166: 3.628828434 | AH166: 22.67484335 | AI166: -40.15581528 | AK166: 70.08075787 | AL166: -44.99425319 | AN166: 42.08075787 | AO166: -16.99425319 | AQ166: 14.08075787 | AR166: -44.99425319 | AT166: 42.08075787 | AU166: -72.99425319
AD167: 167 | AE167: -14.61555097 | AF167: 3.374265815 | AH167: 22.57705922 | AI167: -40.56311547 | AK167: 70.06446052 | AL167: -45.06213656 | AN167: 42.06446052 | AO167: -17.06213656 | AQ167: 14.06446052 | AR167: -45.06213656 | AT167: 42.06446052 | AU167: -73.06213656
AD168: 168 | AE168: -14.67221401 | AF168: 3.118675362 | AH168: 22.48639836 | AI168: -40.9720602 | AK168: 70.04935037 | AL168: -45.13029401 | AN168: 42.04935037 | AO168: -17.13029401 | AQ168: 14.04935037 | AR168: -45.13029401 | AT168: 42.04935037 | AU168: -73.13029401
AD169: 169 | AE169: -14.72440775 | AF169: 2.862134931 | AH169: 22.40288837 | AI169: -41.38252489 | AK169: 70.03543204 | AL169: -45.1987048 | AN169: 42.03543204 | AO169: -17.1987048 | AQ169: 14.03543204 | AR169: -45.1987048 | AT169: 42.03543204 | AU169: -73.1987048
AD170: 170 | AE170: -14.7721163 | AF170: 2.604722665 | AH170: 22.3265547 | AI170: -41.79438451 | AK170: 70.02270977 | AL170: -45.26734807 | AN170: 42.02270977 | AO170: -17.26734807 | AQ170: 14.02270977 | AR170: -45.26734807 | AT170: 42.02270977 | AU170: -73.26734807
AD171: 171 | AE171: -14.81532511 | AF171: 2.346516976 | AH171: 22.2574206 | AI171: -42.20751362 | AK171: 70.01118741 | AL171: -45.33620292 | AN171: 42.01118741 | AO171: -17.33620292 | AQ171: 14.01118741 | AR171: -45.33620292 | AT171: 42.01118741 | AU171: -73.33620292
AD172: 172 | AE172: -14.85402103 | AF172: 2.087596514 | AH172: 22.19550713 | AI172: -42.62178635 | AK172: 70.0008685 | AL172: -45.40524837 | AN172: 42.0008685 | AO172: -17.40524837 | AQ172: 14.0008685 | AR172: -45.40524837 | AT172: 42.0008685 | AU172: -73.40524837
AD173: 173 | AE173: -14.88819227 | AF173: 1.828040151 | AH173: 22.14083314 | AI173: -43.03707654 | AK173: 69.99175617 | AL173: -45.4744634 | AN173: 41.99175617 | AO173: -17.4744634 | AQ173: 13.99175617 | AR173: -45.4744634 | AT173: 41.99175617 | AU173: -73.4744634
AD174: 174 | AE174: -14.91782843 | AF174: 1.567926949 | AH174: 22.09341529 | AI174: -43.45325766 | AK174: 69.9838532 | AL174: -45.54382692 | AN174: 41.9838532 | AO174: -17.54382692 | AQ174: 13.9838532 | AR174: -45.54382692 | AT174: 41.9838532 | AU174: -73.54382692
AD175: 175 | AE175: -14.94292047 | AF175: 1.307336141 | AH175: 22.05326802 | AI175: -43.87020295 | AK175: 69.97716198 | AL175: -45.61331781 | AN175: 41.97716198 | AO175: -17.61331781 | AQ175: 13.97716198 | AR175: -45.61331781 | AT175: 41.97716198 | AU175: -73.61331781
AD176: 176 | AE176: -14.96346075 | AF176: 1.046347106 | AH176: 22.02040357 | AI176: -44.28778541 | AK176: 69.97168458 | AL176: -45.68291488 | AN176: 41.97168458 | AO176: -17.68291488 | AQ176: 13.97168458 | AR176: -45.68291488 | AT176: 41.97168458 | AU176: -73.68291488
AD177: 177 | AE177: -14.97944302 | AF177: 0.7850393436 | AH177: 21.99483194 | AI177: -44.70587783 | AK177: 69.96742264 | AL177: -45.75259695 | AN177: 41.96742264 | AO177: -17.75259695 | AQ177: 13.96742264 | AR177: -45.75259695 | AT177: 41.96742264 | AU177: -73.75259695
AD178: 178 | AE178: -14.99086241 | AF178: 0.5234924505 | AH178: 21.97656093 | AI178: -45.12435286 | AK178: 69.96437747 | AL178: -45.82234279 | AN178: 41.96437747 | AO178: -17.82234279 | AQ178: 13.96437747 | AR178: -45.82234279 | AT178: 41.96437747 | AU178: -73.82234279
AD179: 179 | AE179: -14.99771543 | AF179: 0.2617860966 | AH179: 21.96559609 | AI179: -45.54308302 | AK179: 69.96255 | AL179: -45.89213115 | AN179: 41.96255 | AO179: -17.89213115 | AQ179: 13.96255 | AR179: -45.89213115 | AT179: 41.96255 | AU179: -73.89213115
AD180: 180 | AE180: -15 | AF180: 1.837722682e-15 | AH180: 21.96194078 | AI180: -45.96194078 | AK180: 69.96194078 | AL180: -45.96194078 | AN180: 41.96194078 | AO180: -17.96194078 | AQ180: 13.96194078 | AR180: -45.96194078 | AT180: 41.96194078 | AU180: -73.96194078
AD181: 181 | AE181: -14.99771543 | AF181: -0.2617860966 | AH181: 21.96559609 | AI181: -46.38079853 | AK181: 69.96255 | AL181: -46.0317504 | AN181: 41.96255 | AO181: -18.0317504 | AQ181: 13.96255 | AR181: -46.0317504 | AT181: 41.96255 | AU181: -74.0317504
AD182: 182 | AE182: -14.99086241 | AF182: -0.5234924505 | AH182: 21.97656093 | AI182: -46.7995287 | AK182: 69.96437747 | AL182: -46.10153876 | AN182: 41.96437747 | AO182: -18.10153876 | AQ182: 13.96437747 | AR182: -46.10153876 | AT182: 41.96437747 | AU182: -74.10153876
AD183: 183 | AE183: -14.97944302 | AF183: -0.7850393436 | AH183: 21.99483194 | AI183: -47.21800373 | AK183: 69.96742264 | AL183: -46.1712846 | AN183: 41.96742264 | AO183: -18.1712846 | AQ183: 13.96742264 | AR183: -46.1712846 | AT183: 41.96742264 | AU183: -74.1712846
AD184: 184 | AE184: -14.96346075 | AF184: -1.046347106 | AH184: 22.02040357 | AI184: -47.63609615 | AK184: 69.97168458 | AL184: -46.24096667 | AN184: 41.97168458 | AO184: -18.24096667 | AQ184: 13.97168458 | AR184: -46.24096667 | AT184: 41.97168458 | AU184: -74.24096667
AD185: 185 | AE185: -14.94292047 | AF185: -1.307336141 | AH185: 22.05326802 | AI185: -48.0536786 | AK185: 69.97716198 | AL185: -46.31056375 | AN185: 41.97716198 | AO185: -18.31056375 | AQ185: 13.97716198 | AR185: -46.31056375 | AT185: 41.97716198 | AU185: -74.31056375
AD186: 186 | AE186: -14.91782843 | AF186: -1.567926949 | AH186: 22.09341529 | AI186: -48.4706239 | AK186: 69.9838532 | AL186: -46.38005463 | AN186: 41.9838532 | AO186: -18.38005463 | AQ186: 13.9838532 | AR186: -46.38005463 | AT186: 41.9838532 | AU186: -74.38005463
AD187: 187 | AE187: -14.88819227 | AF187: -1.828040151 | AH187: 22.14083314 | AI187: -48.88680502 | AK187: 69.99175617 | AL187: -46.44941815 | AN187: 41.99175617 | AO187: -18.44941815 | AQ187: 13.99175617 | AR187: -46.44941815 | AT187: 41.99175617 | AU187: -74.44941815
AD188: 188 | AE188: -14.85402103 | AF188: -2.087596514 | AH188: 22.19550713 | AI188: -49.3020952 | AK188: 70.0008685 | AL188: -46.51863318 | AN188: 42.0008685 | AO188: -18.51863318 | AQ188: 14.0008685 | AR188: -46.51863318 | AT188: 42.0008685 | AU188: -74.51863318
AD189: 189 | AE189: -14.81532511 | AF189: -2.346516976 | AH189: 22.2574206 | AI189: -49.71636794 | AK189: 70.01118741 | AL189: -46.58767864 | AN189: 42.01118741 | AO189: -18.58767864 | AQ189: 14.01118741 | AR189: -46.58767864 | AT189: 42.01118741 | AU189: -74.58767864
AD190: 190 | AE190: -14.7721163 | AF190: -2.604722665 | AH190: 22.3265547 | AI190: -50.12949704 | AK190: 70.02270977 | AL190: -46.65653349 | AN190: 42.02270977 | AO190: -18.65653349 | AQ190: 14.02270977 | AR190: -46.65653349 | AT190: 42.02270977 | AU190: -74.65653349
AD191: 191 | AE191: -14.72440775 | AF191: -2.862134931 | AH191: 22.40288837 | AI191: -50.54135667 | AK191: 70.03543204 | AL191: -46.72517676 | AN191: 42.03543204 | AO191: -18.72517676 | AQ191: 14.03543204 | AR191: -46.72517676 | AT191: 42.03543204 | AU191: -74.72517676
AD192: 192 | AE192: -14.67221401 | AF192: -3.118675362 | AH192: 22.48639836 | AI192: -50.95182136 | AK192: 70.04935037 | AL192: -46.79358754 | AN192: 42.04935037 | AO192: -18.79358754 | AQ192: 14.04935037 | AR192: -46.79358754 | AT192: 42.04935037 | AU192: -74.79358754
AD193: 193 | AE193: -14.61555097 | AF193: -3.374265815 | AH193: 22.57705922 | AI193: -51.36076608 | AK193: 70.06446052 | AL193: -46.86174499 | AN193: 42.06446052 | AO193: -18.86174499 | AQ193: 14.06446052 | AR193: -46.86174499 | AT193: 42.06446052 | AU193: -74.86174499
AD194: 194 | AE194: =COS(RADIANS(AD194))*$AB$26 -> -14.55443589 | AF194: -3.628828434 | AH194: 22.67484335 | AI194: -51.76806627 | AK194: =COS(RADIANS(AD194))*$AB$7+$AB$10 -> 70.08075787 | AL194: =SIN(RADIANS(AD194))*$AB$7+$AB$11 -> -46.92962836 | AN194: =COS(RADIANS(AD194))*$AB$7+$AB$13 -> 42.08075787 | AO194: =SIN(RADIANS(AD194))*$AB$7+$AB$14 -> -18.92962836 | AQ194: =COS(RADIANS(AD194))*$AB$7+$AB$16 -> 14.08075787 | AR194: =SIN(RADIANS(AD194))*$AB$7+$AB$17 -> -46.92962836 | AT194: =COS(RADIANS(AD194))*$AB$7+$AB$19 -> 42.08075787 | AU194: =SIN(RADIANS(AD194))*$AB$7+$AB$20 -> -74.92962836
AD195: 195 | AE195: -14.48888739 | AF195: -3.882285677 | AH195: 22.77972095 | AI195: -52.17359786 | AK195: 70.09823747 | AL195: -46.99721696 | AN195: 42.09823747 | AO195: -18.99721696 | AQ195: 14.09823747 | AR195: -46.99721696 | AT195: 42.09823747 | AU195: -74.99721696
AD196: 196 | AE196: -14.41892544 | AF196: -4.134560337 | AH196: 22.89166007 | AI196: -52.57723732 | AK196: 70.11689399 | AL196: -47.0644902 | AN196: 42.11689399 | AO196: -19.0644902 | AQ196: 14.11689399 | AR196: -47.0644902 | AT196: 42.11689399 | AU196: -75.0644902
AD197: 197 | AE197: -14.34457134 | AF197: -4.385575571 | AH197: 23.01062663 | AI197: -52.97886169 | AK197: 70.13672175 | AL197: -47.1314276 | AN197: 42.13672175 | AO197: -19.1314276 | AQ197: 14.13672175 | AR197: -47.1314276 | AT197: 42.13672175 | AU197: -75.1314276
AD198: 198 | AE198: -14.26584774 | AF198: -4.635254916 | AH198: 23.13658439 | AI198: -53.37834864 | AK198: 70.15771471 | AL198: -47.19800875 | AN198: 42.15771471 | AO198: -19.19800875 | AQ198: 14.15771471 | AR198: -47.19800875 | AT198: 42.15771471 | AU198: -75.19800875
AD199: 199 | AE199: -14.18277863 | AF199: -4.883522317 | AH199: 23.26949496 | AI199: -53.77557648 | AK199: 70.17986647 | AL199: -47.26421339 | AN199: 42.17986647 | AO199: -19.26421339 | AQ199: 14.17986647 | AR199: -47.26421339 | AT199: 42.17986647 | AU199: -75.26421339
AD200: 200 | AE200: -14.09538931 | AF200: -5.13030215 | AH200: 23.40931788 | AI200: -54.17042422 | AK200: 70.20317029 | AL200: -47.33002135 | AN200: 42.20317029 | AO200: -19.33002135 | AQ200: 14.20317029 | AR200: -47.33002135 | AT200: 42.20317029 | AU200: -75.33002135
... 161 more rows

Sheet Pic_#1

Sheet Pic_#2

Sheet Pic_#3
